Cogmind - Beta 10.1 @@@ ROGUE MODE // 2020.09.29 @ 18:06:38 Player: Enzo Result: Destroyed by D-53 Grenadier with Mini Grenade Launcher Performance ------------- Evolutions (0) 0 Regions Visited (2) 400 Robots Destroyed (31) 155 Value Destroyed (337) 337 Prototype IDs (0) 0 Alien Tech Used (0) 0 Bonus (0) 0 TOTAL SCORE: 892 Bonus ------- None Cogmind --------- Core Integrity 0/250 Matter 240/300 Energy 99/100 System Corruption 1% Temperature Cool (0) Movement Core (50) Location -10/Mines Parts ------- > --- POWER (1) -------- (None) > --- PROPULSION (2) --- (None) > --- UTILITY (2) ------ (None) > --- WEAPON (2) ------- (None) > --- INVENTORY (4) ---- Terrain Scan Processor Hacking Suite Light Assault Rifle Datajack Peak State ------------ > --- POWER ------------ Ion Engine > --- PROPULSION ------- Light Treads Light Treads > --- UTILITY ---------- High-capacity Storage Unit Medium Armor Plating > --- WEAPON ----------- EM Pulse Gun Small Laser > --- INVENTORY -------- Structural Scanner Improved Terrain Scanner Terrain Scan Processor Medium Armor Plating Light Assault Rifle Datajack Mining Laser [Rating: 9] Favorites ----------- Power Ion Engine Engine Ion Engine Propulsion Light Treads Treads Light Treads Utility High-capacity Storage Unit Device Improved Terrain Scanner Storage High-capacity Storage Unit Protection Medium Armor Plating Weapon EM Pulse Gun Energy Gun EM Pulse Gun Energy Cannon Beam Cannon Ballistic Gun Light Assault Rifle Launcher Grenade Launcher Build | -11 -10 -10 ------- Run | Scr Mat Min Slots Evolved . | . . . Power . | . . . Propulsion . | . . . Utility . | . . . Weapon . | . . . Parts Attached 19 | 7 9 3 Power 2 | 1 1 . Engine 2 | 1 1 . Core . | . . . Reactor . | . . . Propulsion 4 | 2 2 . Treads 4 | 2 2 . Leg . | . . . Wheel . | . . . Hover . | . . . Flight . | . . . Utility 7 | 2 4 1 Device 1 | 1 . . Storage 2 | 1 1 . Processor . | . . . Hackware . | . . . Protection 4 | . 3 1 Artifact . | . . . Weapon 6 | 2 2 2 Energy Gun 3 | 1 1 1 Energy Cannon 1 | . 1 . Ballistic Gun 1 | 1 . . Ballistic Cannon . | . . . Launcher 1 | . . 1 Special Weapon . | . . . Impact Weapon . | . . . Slashing Weapon . | . . . Piercing Weapon . | . . . Special Melee Weapon . | . . . Unidentified Prototypes . | . . . Parts Lost 8 | . . 8 Power 1 | . . 1 Propulsion 2 | . . 2 Utility 2 | . . 2 Weapon 3 | . . 3 Highest Loss Streak 8 | . . 8 Average Slot Usage (%) 98 | . 99 89 Engine 13 | . 14 10 Treads 27 | . 28 27 Storage 14 | . 14 14 Protection 12 | . 12 11 Energy Gun 20 | . 21 12 Energy Cannon 4 | . 2 12 Ballistic Gun 2 | . 3 . Naked Turns 4 | . . 4 Heaviest Build 49 | 13 49 49 Greatest Support 40 | 40 40 40 Greatest Overweight (x) 1 | . 1 1 Average Overweight (x) . | . . . Largest Inventory Capacity 14 | 6 14 12 Average Capacity 11 | 5 11 11 Most Carried 10 | 2 10 10 Average Carried 6 | . 7 9 Final Capacity 12 | 6 12 4 Final Carried 10 | 2 10 4 Class Distribution -------------------- 100% | Mutant Dominant Class ---------------- Mutant | -10/Materials Mutant | -10/Mines Resources | -11 -10 -10 ----------- Run | Scr Mat Min Matter Collected 378 | 276 102 . Remotely . | . . . Salvage Created 687 | 169 487 31 Parts 56 | 15 41 . Haulers Intercepted 2 | . 2 . Recyclers Shooed . | . . . Parts Field Recycled . | . . . Retrieved Matter . | . . . Parts Self-Destructed . | . . . Prevented . | . . . Kills | -11 -10 -10 ------- Run | Scr Mat Min Combat Hostiles Destroyed 20 | . 8 12 Guns 6 | . 6 . AOE 14 | . 2 12 Classes Destroyed 10 | 3 6 1 Worker 2 | 1 1 . Builder 1 | . 1 . Tunneler 3 | 3 . . Hauler 2 | . 2 . Recycler 1 | 1 . . Operator 1 | . 1 . Watcher 1 | . 1 . Swarmer 2 | . 2 . Grunt 6 | . 6 . Assembled 12 | . . 12 Best Kill Streak 12 | 2 5 12 Combat Bots Only 12 | . 4 12 Max Kills in Single Turn 4 | 1 2 4 Gunslinging . | . . . Exploded 4 | . 1 4 Melee . | . . . Uniques/NPCs Destroyed . | . . . Combat | -11 -10 -10 -------- Run | Scr Mat Min Damage Taken 1455 | . 481 974 Core 263 | . 48 215 Absorbed by Shields . | . . . Core Remaining (%) 100 | 100 . . Volleys Fired 47 | 6 33 8 Largest 2 | 2 2 2 Hottest 100 | 60 100 100 Shots Fired 85 | 12 64 9 Gun 75 | 12 62 1 Cannon 3 | . 2 1 Launcher 7 | . . 7 Special . | . . . Kinetic 18 | 6 12 . Thermal 20 | . 19 1 Explosive 7 | . . 7 Electromagnetic 40 | 6 33 1 Robot Hit Streak 11 | 7 6 11 Robot Miss Streak 3 | . 3 1 Penetration Max . | . . . Secondary Targets 1 | . 1 . Max Gunslinging Chain 1 | . 1 . Shots Hit Robots 55 | 7 40 8 Core Hits 49 | 6 19 24 Critical Hits . | . . . Critical Kills . | . . . Critical Parts Destroyed . | . . . Melee Attacks . | . . . Impact . | . . . Slashing . | . . . Piercing . | . . . Sneak Attacks . | . . . Combat Hostiles . | . . . Follow-up Attacks . | . . . Damage Inflicted 1642 | 91 768 783 Guns 553 | 91 450 12 Cannons 36 | . 18 18 Explosions 1053 | . 300 753 Melee . | . . . Ramming . | . . . Kinetic 37 | 6 31 . Thermal 404 | . 386 18 Explosive 753 | . . 753 Electromagnetic 448 | 85 351 12 Impact . | . . . Slashing . | . . . Piercing . | . . . Highest Corruption 1 | . 1 1 Average Corruption 1 | . 1 1 Corruption Purged . | . . . Effects 5 | . 3 2 Message Errors 2 | . 1 1 Energy Discharges 2 | . 1 1 Data Loss (minor) 1 | . 1 . Overload Shots . | . . . Overflow Damage 55 | . 41 14 Projectiles 14 | . . 14 Explosions 41 | . 41 . Melee . | . . . Knockbacks . | . . . Impact . | . . . Kinetic . | . . . Secondary . | . . . Self-Inflicted Damage 133 | . 132 1 Shots 4 | . 3 1 Rammed . | . . . Targets Rammed . | . . . Kicked . | . . . Crushed . | . . . Highest Temperature 374 | 20 374 33 Average Temperature 91 | 14 100 19 Received Heat Transfer 108 | . 108 . Effects 2 | . 2 . Energy Bleed 2 | . 2 . Siege Activations . | . . . Robots Corrupted . | . . . Combat Hostiles . | . . . Parts Fried 2 | 1 1 . Impact Corruptions . | . . . Robots Melted . | . . . Combat Hostiles . | . . . Parts Melted . | . . . Heat Transferred 474 | . 437 37 Parts Sabotaged . | . . . Parts Stolen . | . . . Parts Stripped . | . . . Power Chain Reactions 3 | . 3 . Missiles Intercepted . | . . . Alert | -11 -10 -10 ------- Run | Scr Mat Min Peak Influence 173 | 25 173 27 Initial 27 | . 16 27 Average 65 | 12 81 19 Maximum Alert Level . | . . . Low Security (%) 100 | 100 100 100 Level 1 . | . . . Level 2 . | . . . Level 3 . | . . . Level 4 . | . . . Level 5 . | . . . High Security . | . . . Max Security . | . . . Squads Dispatched 3 | . 3 . Investigation . | . . . Extermination . | . . . Reinforcement 3 | . 3 . Assault . | . . . Garrison . | . . . Intercept . | . . . Construction Impeded . | . . . Haulers Reinforced . | . . . Stealth | -11 -10 -10 --------- Run | Scr Mat Min Distress Signals . | . . . Communications Jammed . | . . . Distress Signals . | . . . Times Spotted 39 | . 22 17 Peak Tracking Total 16 | . 3 16 Tactical Retreats 3 | . 2 1 Traps | -11 -10 -10 ------- Run | Scr Mat Min Traps Triggered 2 | . 2 . Indirectly . | . . . Trap Hack Attempts . | . . . Triggered . | . . . Disarmed . | . . . Reprogrammed . | . . . Reused . | . . . Traps Extracted . | . . . Installed . | . . . Triggered . | . . . Machines | -11 -10 -10 ---------- Run | Scr Mat Min Machines Disabled 3 | . 3 . Max in Single Turn 2 | . 2 . Machines Sabotaged . | . . . Garrisons Compromised . | . . . Overloaded Fab Kills . | . . . Fab Network Shutdowns . | . . . Hacking | -11 -10 -10 --------- Run | Scr Mat Min Machines Accessed 5 | . 5 . Terminals 5 | . 5 . Fabricators . | . . . Repair Stations . | . . . Recycling Units . | . . . Scanalyzers . | . . . Garrison Access . | . . . Total Hacks 12 | . 12 . Successful 5 | . 5 . Failed 7 | . 7 . Catastrophic . | . . . Database Lockouts . | . . . Manual 6 | . 6 . Terminals 12 | . 12 . Fabricators . | . . . Repair Stations . | . . . Recycling Units . | . . . Scanalyzers . | . . . Garrison Access . | . . . Terminal Hacks 1 | . 1 . Robot Analysis 1 | . 1 . Fabricator Hacks . | . . . Repair Station Hacks . | . . . Recycling Unit Hacks . | . . . Scanalyzer . | . . . Garrison Access Hacks . | . . . Unauthorized Hacks 4 | . 4 . Terminals 4 | . 4 . Assimilate 1 | . 1 . Botnet 3 | . 3 . Fabricators . | . . . Repair Stations . | . . . Recycling Units . | . . . Scanalyzers . | . . . Garrison Access . | . . . Data Cores Recovered . | . . . Used . | . . . Hacking Detections 5 | . 5 . Full Trace Events . | . . . Feedback Events . | . . . Feedback Blocked . | . . . Robot Schematics Acquired . | . . . Robots Built . | . . . Matter . | . . . Time . | . . . Total Robot Build Rating . | . . . Part Schematics Acquired . | . . . Parts Built . | . . . Matter . | . . . Time . | . . . Total Part Build Rating . | . . . Parts Repaired . | . . . Time . | . . . Parts Recycled . | . . . Recycled Matter . | . . . Retrieved Matter . | . . . Retrieved Components . | . . . Parts Scanalyzed . | . . . Part Schematics Acquired . | . . . Parts Damaged . | . . . Bothacking | -11 -10 -10 ------------ Run | Scr Mat Min Used RIF Installer . | . . . Robots Hacked . | . . . Non-combat . | . . . Combat . | . . . Robot Hacks Applied . | . . . Relay Couplers Released . | . . . Robots Rewired . | . . . Allies Hacked . | . . . Hacks Repelled . | . . . Allies | -11 -10 -10 -------- Run | Scr Mat Min Total Allies 1 | . 1 . Largest Group 1 | . 1 1 Highest-Rated Group 10 | . 10 10 Highest-Rated Ally 10 | . 10 10 Total Orders . | . . . Ally Attacks . | . . . Total Damage . | . . . Kills . | . . . Allies Corrupted . | . . . Allies Melted . | . . . Intel | -11 -10 -10 ------- Run | Scr Mat Min Robot Analysis Total 1 | . 1 . Derelict Logs Recovered . | . . . Drone Launches . | . . . Drone Recoveries . | . . . Exploration | -11 -10 -10 ------------- Run | Scr Mat Min Turns Passed 1465 | 153 1097 215 Spaces Moved 729 | 77 536 116 Core 10 | 2 . 8 Treads 719 | 75 536 108 Legs . | . . . Wheels . | . . . Hover . | . . . Flight . | . . . Fastest Speed 50 | 50 160 50 Average Speed 174 | 157 178 167 Slowest Speed 180 | 160 180 180 Overloaded Moves . | . . . Propulsion Burnouts . | . . . Robots Hopped . | . . . Cave-ins Triggered . | . . . Exploration Rate (%) 39 | 5 80 33 Regions Visited 2 Branch Regions 1 Pre-discovered Areas . | . . . Known Exits Taken . | . . . Unknown Exits Taken 2 | 1 1 . Scrap Searched 1 | . . 1 Spaces Dug . | . . . Terrain Destroyed 63 | . 38 25 Melee . | . . . Projectile . | . . . AOE 63 | . 38 25 Terrain Rammed . | . . . Walls Destroyed . | . . . Machines Disabled . | . . . Actions | -11 -10 -10 --------- Run | Scr Mat Min Total 839 | 95 616 128 Wait 25 | 4 21 . Move 727 | 76 535 116 Hop . | . . . Pick Up 10 | 2 8 . Fast Attach 13 | 7 6 . Attach 2 | . . 2 Detach 1 | . 1 . Swap 4 | . 3 1 Drop 10 | . 9 1 Fire 47 | 6 33 8 Melee . | . . . Ram . | . . . Kick . | . . . Crush . | . . . Escape Stasis . | . . . Rewire . | . . . Trap . | . . . Miscellaneous . | . . . Route ------- -11/Scrapyard -10/Materials (discovered 3 exits: [*Mat x2] / [*Min]) -10/Mines History --------- Turn | Location | Event 6 | -11/Scrapyard | Discovered new exit (range 15) 154 | -11/Scrapyard | Entered Materials 309 | -10/Materials | Build established: Mutant 523 | -10/Materials | Discovered new exit (range 6) 1015 | -10/Materials | Discovered new exit (range 3) 1230 | -10/Materials | Discovered new exit (range 8) 1251 | -10/Materials | Entered Mines 1251 | -10/Mines | Accompanied by 1 ally 1389 | -10/Mines | Assembled infested the area 1426 | -10/Mines | Destroyed 12 combat bots 1439 | -10/Mines | Core integrity fell below 50% 1462 | -10/Mines | Core integrity fell below 20% 1466 | -10/Mines | Destroyed by D-53 Grenadier with Mini Grenade Launcher Last Messages --------------- 01411_ as-86100 suffers critical hit. 01411_ as-86100 destroyed. 01411_ U-05 Engineer lays Concrete. 01413_ Med. Armor Plating destroyed. 01413_ U-05 Engineer lays Concrete. 01413_ K-01 Serf collects debris. 01414_ U-05 Engineer lays Concrete. 01416_ U-05 Engineer destroyed. 01417_ T-07 Excavator destroyed. 01432_ R-06 Scavenger collects Wheel. 01435_ R-06 Scavenger collects Seismic Analyzer. 01436_ Beam Cannon destroyed. 01440_ EM Pulse Gun destroyed. 01448_ The unstable cave ceiling collapses. 01450_ Lgt. Treads destroyed. 01452_ Med. Armor Plating destroyed. 01452_ D-53 Grenadier destroyed. 01458_ The unstable cave ceiling collapses. 01461_ Lgt. Treads destroyed. 01462_ Dropped Hcp. Storage Unit. Map ----- +----------------------------------------------------+ | ?????????????????????????????????????????????????? | | ???????????????????????#####?????????????????????? | | ??????????????????????## ######????????????????? | | ????????????????????### # ###??????????????? | | #??????????????????## ##?????????????? | | ??????????????????# # ####??????????? | | ?????????####???#### ?????????? | | #????????## ##### ?????????? | | #????##### ## ######?????????????? | | ###### ##??????????????????? | | #???????????????????? | | ### #???????????????????? | | # ### ##### * #???????????????????? | | # ### ### % #???????????????????? | | # #### # #????????????????????? | | # #### #### % # # #????????????????????? | | # #??####### # d #????????????????????? | | #???????# #????????????????????? | | ###??????# #????????????????????? | | ??????# % ! ##???????????????????? | | ???? %= ! #???????????????????? | | ????## ## ##???????????????????? | | ?????## # #???????????????????? | | ??????#### ##???????????????????? | | ?????????# ## #????????????????????? | | ??????????# #?# % @###????????????????????? | | ??????????# ##?### #?????????????????????? | | ?????????? #???## #?????????????????????? | | ?????????# ?????#####?????????????????????? | | ??????????# ???????????????????????????????? | | ????????????? ???????????????????????????????? | | ??????????????? ##???????????????????????????????? | | ?????????????????????????????????????????????????? | | ?????????????????????????????????????????????????? | | ?????????????????????????????????????????????????? | | ?????????????????????????????????????????????????? | | ?????????????????????????????????????????????????? | | ?????????????????????????????????????????????????? | | ?????????????????????????????????????????????????? | | ?????????????????????????????????????????????????? | | ?????????????????????????????????????????????????? | | ?????????????????????????????????????????????????? | | ?????????????????????????????????????????????????? | | ?????????????????????????????????????????????????? | | ?????????????????????????????????????????????????? | | ?????????????????????????????????????????????????? | | ?????????????????????????????????????????????????? | | ?????????????????????????????????????????????????? | | ?????????????????????????????????????????????????? | | ?????????????????????????????????????????????????? | +----------------------------------------------------+ Best States ------------- Heat Dissipation 25 Energy Generation 10 Energy Capacity 250 Matter Stores 300 Matter Capacity 300 Sight Range 16 Terrain Scan Range 16 Terrain Scan Density 10 Armor Coverage 225 Evasion (%) 40 Recoil Reduction 2 Item Schematics ----------------- None Robot Schematics ------------------ None Fabricated ------------ Nothing Alien Tech Used ----------------- None Achievements -------------- None Challenges ------------ None Game ------ Seed MachineHoverLauncher Manual? 0 Play Time 00:11:48 Cumulative 40.7 hours Start 2020.09.29 @ 17:56:55 End 2020.09.29 @ 18:06:38 Sessions 1 Manual Loads 0 Difficulty Rogue Special Mode None Game No. 97 Rogue 97 Adventurer 0 Explorer 0 Win Type - Total 0 Types 0/0/0/0/0/0/0/0/0 Lore% 39 Gallery% 41 Achievement% 33 Wizard Run 0 Options --------- ASCII 0 Keyboard 0 Movement Numpad Keybinds 0 Fullscreen 2 Font 24/Smallcaps Map View 76x50 Tactical HUD 1 Map Filters NONE Filters NONE Steam 1 RUN: 417df384-443a-48bc-a1a3-831137bb2d32